Workbook

Sheet ECHEANCIER
A2: DEPENSES
A3: JOUR MENS. | B3: JOUR TRIMEST. | D3: TIERS | E3: CATEGORIE | F3: MONTANT | G3: MODIF | I3: COMPTABILISATION | J3: MODE PAIEMENT | K3: TIERS
A4: 6 | C4: Prel | D4: C MUTUEL | E4: DEP DIV | F4: -3.96 | I4: DEP DIV | J4: Carte | K4: Bontemps
A5: 10 | C5: Vir recu | D5: CRAM | E5: RETRAITE | F5: 677.63 | I5: REC DIV | J5: Cheque | K5: Carrefour
A6: 10 | C6: Vir recu | D6: M.S.A | E6: RETRAITE | F6: 107.69 | I6: RETRAITE | J6: Retrait | K6: T.L.M. Sercices
A7: 28 | C7: Vir recu | D7: TG NANTES | E7: RETRAITE | F7: 1188.05 | I7: C.PORT | J7: Vir emis | K7: Dr Henri
A8: 30 | C8: Prel | D8: URSSAF | E8: DEP DIV | I8: DIVERS | J8: Prel | K8: Dr Julien
J9: Depot cheque | K9: Super U
J10: Vir recu | K10: Marche Fermier
J11: Vers | K11: Poste
K12: L'Embellie
K13: Peltier
K14: Vir.Interne

Sheet TOTAUX
A2: MOIS | B2: RECETTES | E2: DEPENSES | F2: DIVERS
B3: RETRAITE | C3: DIVERSES | D3: C.PORT | E3: DIVERSES
A4: JANVIER | B4: =JANVIER!H27 -> 1973.37 | C4: =JANVIER!I27 -> 0 | D4: =JANVIER!J27 -> 0 | E4: =JANVIER!K27 -> -3.96 | F4: =JANVIER!L27 -> 0
A5: FEVRIER | B5: =FEVRIER!H27 -> 1973.37 | C5: =FEVRIER!I27 -> 0 | D5: =FEVRIER!J27 -> 0 | E5: =FEVRIER!K27 -> -3.96 | F5: =FEVRIER!N27 -> 0
A6: MARS | B6: =MARS!H27 -> 1973.37 | C6: =MARS!I27 -> 0 | D6: =MARS!J27 -> 0 | E6: =MARS!K27 -> -3.96 | F6: =MARS!N27 -> 0
A7: AVRIL | B7: =AVRIL!H27 -> 1973.37 | C7: =AVRIL!I27 -> 0 | D7: =AVRIL!J27 -> 0 | E7: =AVRIL!K27 -> -3.96 | F7: =AVRIL!N27 -> 0
A8: MAI | B8: =MAI!H27 -> 1973.37 | C8: =MAI!I27 -> 0 | D8: =MAI!J27 -> 0 | E8: =MAI!K27 -> -3.96 | F8: =MAI!N27 -> 0
A9: JUIN | B9: =JUIN!H27 -> 1973.37 | C9: =JUIN!I27 -> 0 | D9: =JUIN!J27 -> 0 | E9: =JUIN!K27 -> -3.96 | F9: =JUIN!N27 -> 0
A10: JUILLET | B10: =JUILLET!H27 -> 1973.37 | C10: =JUILLET!I27 -> 0 | D10: =JUILLET!J27 -> 0 | E10: =JUILLET!K27 -> -3.96 | F10: =JUILLET!N27 -> 0
A11: AOUT | B11: =AOUT!H27 -> 1973.37 | C11: =AOUT!I27 -> 0 | D11: =AOUT!J27 -> 0 | E11: =AOUT!K27 -> -3.96 | F11: =AOUT!N27 -> 0
A12: SEPTEMBRE | B12: =SEPTEMBRE!H27 -> 1973.37 | C12: =SEPTEMBRE!I27 -> 0 | D12: =SEPTEMBRE!J27 -> 0 | E12: =SEPTEMBRE!K27 -> -3.96 | F12: =SEPTEMBRE!N27 -> 0
A13: OCTOBRE | B13: =OCTOBRE!H27 -> 1973.37 | C13: =OCTOBRE!I27 -> 0 | D13: =OCTOBRE!J27 -> 0 | E13: =OCTOBRE!K27 -> -3.96 | F13: =OCTOBRE!N27 -> 0
A14: NOVEMBRE | B14: =NOVEMBRE!H27 -> 1973.37 | C14: =NOVEMBRE!I27 -> 0 | D14: =NOVEMBRE!J27 -> 0 | E14: =NOVEMBRE!K27 -> -3.96 | F14: =NOVEMBRE!N27 -> 0
A15: DECEMBRE | B15: =DECEMBRE!H27 -> 1973.37 | C15: =DECEMBRE!I27 -> 0 | D15: =DECEMBRE!J27 -> 0 | E15: =DECEMBRE!K27 -> -3.96 | F15: =DECEMBRE!N27 -> 0
A17: S/TOTAUX | B17: =SUM(B4:B15) -> 23680.44 | C17: =SUM(C4:C15) -> 0 | D17: 0 | E17: -47.52 | F17: 0
A18: TOTAUX | C18: =SUM(B17:D17) -> 23680.44 | E18: =SUM(E17:E17) -> -47.52 | F18: =F17 -> 0

Sheet JANVIER
A1: =MID(CELL("filename",A1),FIND("]",CELL("filename",A1))+1,32) -> JANVIER
A2: JOURS | B2: MODE | C2: TIERS | D2: CATEGORIE | E2: CREDIT MUTUEL | G2: P | H2: RECETTES | K2: DEPENSES | L2: DIVERS
B3: PAIEMENT | E3: DEB./CRED. | F3: SOLDE | H3: RETRAITE | I3: DIVERSES | J3: C. PORT | K3: DIVERSES
A4: 2018-01-01 | B4: REPORT | F4: 2349.04
A5: =$A$4+5 -> 2018-01-06 | B5: =ECHEANCIER!C4 -> Prel | C5: =ECHEANCIER!D4 -> C MUTUEL | D5: =ECHEANCIER!E4 -> DEP DIV | E5: =IF($A5<=TODAY(),ECHEANCIER!$F4,0) -> -3.96 | F5: =SUM(F4)+(E5) -> 2345.08 | H5: =IF($D5="RETRAITE",($E5),0) -> 0 | I5: =IF($D5="rec div",($E5),0) -> 0 | K5: =IF($D5="dep div",($E5),0) -> -3.96 | L5: =IF($D5="divers",($E5),0) -> 0
A6: =$A$4+9 -> 2018-01-10 | B6: =ECHEANCIER!C5 -> Vir recu | C6: =ECHEANCIER!D5 -> CRAM | D6: =ECHEANCIER!E5 -> RETRAITE | E6: =IF($A6<=TODAY(),ECHEANCIER!$F5,0) -> 677.63 | F6: =SUM(F5+E6) -> 3022.71 | H6: =IF($D6="RETRAITE",($E6),0) -> 677.63 | I6: =IF($D6="rec div",($E6),0) -> 0 | K6: =IF($D6="dep div",($E6),0) -> 0 | L6: =IF($D6="divers",($E6),0) -> 0
A7: =$A$4+9 -> 2018-01-10 | B7: =ECHEANCIER!C6 -> Vir recu | C7: =ECHEANCIER!D6 -> M.S.A | D7: =ECHEANCIER!E6 -> RETRAITE | E7: =IF($A7<=TODAY(),ECHEANCIER!$F6,0) -> 107.69 | F7: =SUM(F6+E7) -> 3130.4 | H7: 107.69 | I7: 0 | K7: =IF($D7="dep div",($E7),0) -> 0 | L7: 0
A8: =$A$4+27 -> 2018-01-28 | B8: =ECHEANCIER!C7 -> Vir recu | C8: =ECHEANCIER!D7 -> TG NANTES | D8: =ECHEANCIER!E7 -> RETRAITE | E8: =IF($A8<=TODAY(),ECHEANCIER!$F7,0) -> 1188.05 | F8: 4318.45 | H8: 1188.05 | I8: 0 | K8: 0 | L8: 0
A9: =$A$4+29 -> 2018-01-30 | B9: =ECHEANCIER!C8 -> Prel | C9: =ECHEANCIER!D8 -> URSSAF | D9: =ECHEANCIER!E8 -> DEP DIV | E9: =IF($A9<=TODAY(),ECHEANCIER!$F8,0) -> 0 | F9: 4318.45 | I9: 0 | K9: 0 | L9: 0
F10: 4318.45 | I10: 0 | K10: 0 | L10: 0
F11: 4318.45 | I11: 0 | K11: 0 | L11: 0
F12: 4318.45 | I12: 0 | K12: 0 | L12: 0
F13: 4318.45 | I13: 0 | K13: 0 | L13: 0
F14: 4318.45 | I14: 0 | K14: 0 | L14: 0
F15: 4318.45 | I15: 0 | K15: 0 | L15: 0
F16: 4318.45 | I16: 0 | K16: 0 | L16: 0
F17: 4318.45 | I17: 0 | K17: 0 | L17: 0
F18: 4318.45 | I18: 0 | K18: 0 | L18: =IF($D18="divers",($E18),0) -> 0
F19: 4318.45 | I19: 0 | K19: 0 | L19: 0
F20: 4318.45 | I20: 0 | K20: 0 | L20: 0
F21: 4318.45 | I21: 0 | K21: 0 | L21: 0
F22: 4318.45 | I22: =IF($D22="rec div",($E22),0) -> 0 | K22: 0 | L22: 0
F23: 4318.45 | I23: 0 | K23: 0 | L23: 0
F24: 4318.45 | I24: 0 | K24: 0 | L24: 0
F25: 4318.45 | I25: 0 | K25: 0 | L25: 0
F26: 4318.45 | I26: 0 | K26: 0 | L26: 0
A27: TOTAL MOIS | E27: =SUM(E5:E26) -> 1969.41 | H27: =SUM(H5:H26) -> 1973.37 | I27: 0 | K27: -3.96 | L27: 0
A28: TOTAL | F28: =F26 -> 4318.45 | H28: =(H27+H4) -> 1973.37 | K28: =(K27+K4) -> -3.96 | L28: 0
C30: CONTROLE | F30: =(F28) -> 4318.45

Sheet FEVRIER
A1: =MID(CELL("filename",A1),FIND("]",CELL("filename",A1))+1,32) -> FEVRIER
A2: JOURS | B2: MODE | C2: TIERS | D2: CATEGORIE | E2: CREDIT MUTUEL | G2: P | H2: RECETTES | K2: DEPENSES | L2: DIVERS
B3: PAIEMENT | E3: DEB./CRED. | F3: SOLDE | H3: RETRAITE | I3: DIVERSES | J3: C. PORT | K3: DIVERSES
A4: 2018-02-01 | B4: REPORT | F4: =JANVIER!F28 -> 4318.45 | H4: =JANVIER!H28 -> 1973.37 | I4: =JANVIER!I28 -> 0 | J4: =JANVIER!J28 -> 0 | K4: =JANVIER!K28 -> -3.96 | L4: =JANVIER!L28 -> 0
A5: =$A$4+5 -> 2018-02-06 | B5: =ECHEANCIER!C4 -> Prel | C5: =ECHEANCIER!D4 -> C MUTUEL | D5: =ECHEANCIER!E4 -> DEP DIV | E5: =IF($A5<=TODAY(),ECHEANCIER!$F4,0) -> -3.96 | F5: =SUM(F4)+(E5) -> 4314.49 | H5: =IF($D5="RETRAITE",($E5),0) -> 0 | I5: =IF($D5="rec div",($E5),0) -> 0 | K5: =IF($D5="dep div",($E5),0) -> -3.96 | L5: =IF($D5="divers",($E5),0) -> 0
A6: =$A$4+9 -> 2018-02-10 | B6: =ECHEANCIER!C5 -> Vir recu | C6: =ECHEANCIER!D5 -> CRAM | D6: =ECHEANCIER!E5 -> RETRAITE | E6: =IF($A6<=TODAY(),ECHEANCIER!$F5,0) -> 677.63 | F6: =SUM(F5+E6) -> 4992.12 | H6: =IF($D6="RETRAITE",($E6),0) -> 677.63 | I6: 0 | K6: =IF($D6="dep div",($E6),0) -> 0 | L6: =IF($D6="divers",($E6),0) -> 0
A7: =$A$4+9 -> 2018-02-10 | B7: =ECHEANCIER!C6 -> Vir recu | C7: =ECHEANCIER!D6 -> M.S.A | D7: =ECHEANCIER!E6 -> RETRAITE | E7: =IF($A7<=TODAY(),ECHEANCIER!$F6,0) -> 107.69 | F7: =SUM(F6+E7) -> 5099.81 | H7: =IF($D7="RETRAITE",($E7),0) -> 107.69 | I7: 0 | K7: =IF($D7="dep div",($E7),0) -> 0 | L7: 0
A8: =$A$4+27 -> 2018-02-28 | B8: =ECHEANCIER!C7 -> Vir recu | C8: =ECHEANCIER!D7 -> TG NANTES | D8: =ECHEANCIER!E7 -> RETRAITE | E8: =IF($A8<=TODAY(),ECHEANCIER!$F7,0) -> 1188.05 | F8: =SUM(F7+E8) -> 6287.86 | H8: =IF($D8="RETRAITE",($E8),0) -> 1188.05 | I8: 0 | K8: 0 | L8: 0
A9: =$A$4+29 -> 2018-03-02 | B9: =ECHEANCIER!C8 -> Prel | C9: =ECHEANCIER!D8 -> URSSAF | D9: =ECHEANCIER!E8 -> DEP DIV | E9: =IF($A9<=TODAY(),ECHEANCIER!$F8,0) -> 0 | F9: =SUM(F8)+(E9) -> 6287.86 | I9: 0 | K9: 0 | L9: 0
F10: =SUM(F9)+(E10) -> 6287.86 | I10: 0 | K10: 0 | L10: 0
F11: =SUM(F10)+(E11) -> 6287.86 | I11: =IF($D11="rec div",($E11),0) -> 0 | K11: 0 | L11: 0
F12: 6287.86 | I12: 0 | K12: 0 | L12: 0
F13: 6287.86 | I13: 0 | K13: 0 | L13: 0
F14: 6287.86 | I14: 0 | K14: 0 | L14: 0
F15: 6287.86 | I15: 0 | K15: 0 | L15: 0
F16: 6287.86 | I16: 0 | K16: 0 | L16: 0
F17: 6287.86 | I17: 0 | K17: 0 | L17: 0
F18: 6287.86 | I18: 0 | K18: 0 | L18: =IF($D18="divers",($E18),0) -> 0
F19: 6287.86 | I19: 0 | K19: 0 | L19: 0
F20: 6287.86 | I20: 0 | K20: 0 | L20: 0
F21: 6287.86 | I21: 0 | K21: 0 | L21: 0
F22: 6287.86 | I22: 0 | K22: 0 | L22: 0
F23: 6287.86 | I23: 0 | K23: 0 | L23: 0
F24: 6287.86 | I24: 0 | K24: 0 | L24: 0
F25: 6287.86 | I25: 0 | K25: 0 | L25: 0
F26: 6287.86 | I26: 0 | K26: 0 | L26: 0
A27: TOTAL MOIS | E27: =SUM(E5:E26) -> 1969.41 | H27: =SUM(H5:H26) -> 1973.37 | I27: 0 | K27: -3.96 | L27: 0
A28: TOTAL | F28: =F26 -> 6287.86 | H28: =(H27+H4) -> 3946.74 | K28: =(K27+K4) -> -7.92 | L28: 0
C30: CONTROLE | F30: =(F28) -> 6287.86

Sheet MARS
A1: =MID(CELL("filename",A1),FIND("]",CELL("filename",A1))+1,32) -> MARS
A2: JOURS | B2: MODE | C2: TIERS | D2: CATEGORIE | E2: CREDIT MUTUEL | G2: P | H2: RECETTES | K2: DEPENSES | L2: DIVERS
B3: PAIEMENT | E3: DEB./CRED. | F3: SOLDE | H3: RETRAITE | I3: DIVERSES | J3: C. PORT | K3: DIVERSES
A4: 2018-03-01 | B4: REPORT | F4: =FEVRIER!F28 -> 6287.86 | H4: =FEVRIER!H28 -> 3946.74 | I4: =FEVRIER!I28 -> 0 | J4: =FEVRIER!J28 -> 0 | K4: =FEVRIER!K28 -> -7.92 | L4: =FEVRIER!L28 -> 0
A5: =$A$4+5 -> 2018-03-06 | B5: =ECHEANCIER!C4 -> Prel | C5: =ECHEANCIER!D4 -> C MUTUEL | D5: =ECHEANCIER!E4 -> DEP DIV | E5: =IF($A5<=TODAY(),ECHEANCIER!$F4,0) -> -3.96 | F5: =SUM(F4)+(E5) -> 6283.9 | H5: =IF($D5="RETRAITE",($E5),0) -> 0 | I5: =IF($D5="rec div",($E5),0) -> 0 | K5: =IF($D5="dep div",($E5),0) -> -3.96 | L5: =IF($D5="divers",($E5),0) -> 0
A6: =$A$4+9 -> 2018-03-10 | B6: =ECHEANCIER!C5 -> Vir recu | C6: =ECHEANCIER!D5 -> CRAM | D6: =ECHEANCIER!E5 -> RETRAITE | E6: =IF($A6<=TODAY(),ECHEANCIER!$F5,0) -> 677.63 | F6: =SUM(F5+E6) -> 6961.53 | H6: =IF($D6="RETRAITE",($E6),0) -> 677.63 | I6: =IF($D6="rec div",($E6),0) -> 0 | K6: =IF($D6="dep div",($E6),0) -> 0 | L6: =IF($D6="divers",($E6),0) -> 0
A7: =$A$4+9 -> 2018-03-10 | B7: =ECHEANCIER!C6 -> Vir recu | C7: =ECHEANCIER!D6 -> M.S.A | D7: =ECHEANCIER!E6 -> RETRAITE | E7: =IF($A7<=TODAY(),ECHEANCIER!$F6,0) -> 107.69 | F7: =SUM(F6+E7) -> 7069.22 | H7: 107.69 | I7: 0 | K7: =IF($D7="dep div",($E7),0) -> 0 | L7: 0
A8: =$A$4+27 -> 2018-03-28 | B8: =ECHEANCIER!C7 -> Vir recu | C8: =ECHEANCIER!D7 -> TG NANTES | D8: =ECHEANCIER!E7 -> RETRAITE | E8: =IF($A8<=TODAY(),ECHEANCIER!$F7,0) -> 1188.05 | F8: 8257.27 | H8: 1188.05 | I8: 0 | K8: 0 | L8: 0
A9: =$A$4+29 -> 2018-03-30 | B9: =ECHEANCIER!C8 -> Prel | C9: =ECHEANCIER!D8 -> URSSAF | D9: =ECHEANCIER!E8 -> DEP DIV | E9: =IF($A9<=TODAY(),ECHEANCIER!$F8,0) -> 0 | F9: 8257.27 | I9: 0 | K9: 0 | L9: 0
F10: 8257.27 | I10: 0 | K10: 0 | L10: 0
F11: 8257.27 | I11: 0 | K11: 0 | L11: 0
F12: 8257.27 | I12: 0 | K12: 0 | L12: 0
F13: 8257.27 | I13: 0 | K13: 0 | L13: 0
F14: 8257.27 | I14: 0 | K14: 0 | L14: 0
F15: 8257.27 | I15: 0 | K15: 0 | L15: 0
F16: 8257.27 | I16: 0 | K16: 0 | L16: 0
F17: 8257.27 | I17: 0 | K17: 0 | L17: 0
F18: 8257.27 | I18: 0 | K18: 0 | L18: =IF($D18="divers",($E18),0) -> 0
F19: 8257.27 | I19: 0 | K19: 0 | L19: 0
F20: 8257.27 | I20: 0 | K20: 0 | L20: 0
F21: 8257.27 | I21: 0 | K21: 0 | L21: 0
F22: 8257.27 | I22: 0 | K22: 0 | L22: 0
F23: 8257.27 | I23: 0 | K23: 0 | L23: 0
F24: 8257.27 | I24: 0 | K24: 0 | L24: 0
F25: 8257.27 | I25: 0 | K25: 0 | L25: 0
F26: 8257.27 | I26: 0 | K26: 0 | L26: 0
A27: TOTAL MOIS | E27: =SUM(E5:E26) -> 1969.41 | H27: =SUM(H5:H26) -> 1973.37 | I27: 0 | K27: -3.96 | L27: 0
A28: TOTAL | F28: =F26 -> 8257.27 | H28: =(H27+H4) -> 5920.11 | K28: =(K27+K4) -> -11.88 | L28: 0
C30: CONTROLE | F30: =(F28) -> 8257.27

Sheet AVRIL
A1: =MID(CELL("filename",A1),FIND("]",CELL("filename",A1))+1,32) -> AVRIL
A2: JOURS | B2: MODE | C2: TIERS | D2: CATEGORIE | E2: CREDIT MUTUEL | G2: P | H2: RECETTES | K2: DEPENSES | L2: DIVERS
B3: PAIEMENT | E3: DEB./CRED. | F3: SOLDE | H3: RETRAITE | I3: DIVERSES | J3: C. PORT | K3: DIVERSES
A4: 2018-04-01 | B4: REPORT | F4: =MARS!F28 -> 8257.27 | H4: =MARS!H28 -> 5920.11 | I4: =MARS!I28 -> 0 | J4: =MARS!J28 -> 0 | K4: =MARS!K28 -> -11.88 | L4: =MARS!L28 -> 0
A5: =$A$4+5 -> 2018-04-06 | B5: =ECHEANCIER!C4 -> Prel | C5: =ECHEANCIER!D4 -> C MUTUEL | D5: =ECHEANCIER!E4 -> DEP DIV | E5: =IF($A5<=TODAY(),ECHEANCIER!$F4,0) -> -3.96 | F5: =SUM(F4)+(E5) -> 8253.31 | H5: =IF($D5="RETRAITE",($E5),0) -> 0 | I5: =IF($D5="rec div",($E5),0) -> 0 | K5: =IF($D5="dep div",($E5),0) -> -3.96 | L5: =IF($D5="divers",($E5),0) -> 0
A6: =$A$4+9 -> 2018-04-10 | B6: =ECHEANCIER!C5 -> Vir recu | C6: =ECHEANCIER!D5 -> CRAM | D6: =ECHEANCIER!E5 -> RETRAITE | E6: =IF($A6<=TODAY(),ECHEANCIER!$F5,0) -> 677.63 | F6: =SUM(F5+E6) -> 8930.94 | H6: =IF($D6="RETRAITE",($E6),0) -> 677.63 | I6: =IF($D6="rec div",($E6),0) -> 0 | K6: =IF($D6="dep div",($E6),0) -> 0 | L6: =IF($D6="divers",($E6),0) -> 0
A7: =$A$4+9 -> 2018-04-10 | B7: =ECHEANCIER!C6 -> Vir recu | C7: =ECHEANCIER!D6 -> M.S.A | D7: =ECHEANCIER!E6 -> RETRAITE | E7: =IF($A7<=TODAY(),ECHEANCIER!$F6,0) -> 107.69 | F7: =SUM(F6+E7) -> 9038.63 | H7: 107.69 | I7: 0 | K7: =IF($D7="dep div",($E7),0) -> 0 | L7: 0
A8: =$A$4+27 -> 2018-04-28 | B8: =ECHEANCIER!C7 -> Vir recu | C8: =ECHEANCIER!D7 -> TG NANTES | D8: =ECHEANCIER!E7 -> RETRAITE | E8: =IF($A8<=TODAY(),ECHEANCIER!$F7,0) -> 1188.05 | F8: 10226.68 | H8: 1188.05 | I8: 0 | K8: 0 | L8: 0
A9: =$A$4+29 -> 2018-04-30 | B9: =ECHEANCIER!C8 -> Prel | C9: =ECHEANCIER!D8 -> URSSAF | D9: =ECHEANCIER!E8 -> DEP DIV | E9: =IF($A9<=TODAY(),ECHEANCIER!$F8,0) -> 0 | F9: 10226.68 | I9: 0 | K9: 0 | L9: 0
F10: 10226.68 | I10: 0 | K10: 0 | L10: 0
F11: 10226.68 | I11: 0 | K11: 0 | L11: 0
F12: 10226.68 | I12: 0 | K12: 0 | L12: 0
F13: 10226.68 | I13: 0 | K13: 0 | L13: 0
F14: 10226.68 | I14: 0 | K14: 0 | L14: 0
F15: 10226.68 | I15: 0 | K15: 0 | L15: 0
F16: 10226.68 | I16: 0 | K16: 0 | L16: 0
F17: 10226.68 | I17: 0 | K17: 0 | L17: 0
F18: 10226.68 | I18: 0 | K18: 0 | L18: =IF($D18="divers",($E18),0) -> 0
F19: 10226.68 | I19: 0 | K19: 0 | L19: 0
F20: 10226.68 | I20: 0 | K20: 0 | L20: 0
F21: 10226.68 | I21: 0 | K21: 0 | L21: 0
F22: 10226.68 | I22: 0 | K22: 0 | L22: 0
F23: 10226.68 | I23: 0 | K23: 0 | L23: 0
F24: 10226.68 | I24: 0 | K24: 0 | L24: 0
F25: 10226.68 | I25: 0 | K25: 0 | L25: 0
F26: 10226.68 | I26: 0 | K26: 0 | L26: 0
A27: TOTAL MOIS | E27: =SUM(E5:E26) -> 1969.41 | H27: =SUM(H5:H26) -> 1973.37 | I27: 0 | K27: -3.96 | L27: 0
A28: TOTAL | F28: =F26 -> 10226.68 | G28: 5 | H28: =(H27+H4) -> 7893.48 | K28: =(K27+K4) -> -15.84 | L28: 0
C30: CONTROLE | F30: =(F28) -> 10226.68

Sheet MAI
A1: =MID(CELL("filename",A1),FIND("]",CELL("filename",A1))+1,32) -> MAI
A2: JOURS | B2: MODE | C2: TIERS | D2: CATEGORIE | E2: CREDIT MUTUEL | G2: P | H2: RECETTES | K2: DEPENSES | L2: DIVERS
B3: PAIEMENT | E3: DEB./CRED. | F3: SOLDE | H3: RETRAITE | I3: DIVERSES | J3: C. PORT | K3: DIVERSES
A4: 2018-05-01 | B4: REPORT | F4: =MARS!F28 -> 8257.27 | H4: =MARS!H28 -> 5920.11 | I4: =MARS!I28 -> 0 | J4: =MARS!J28 -> 0 | K4: =MARS!K28 -> -11.88 | L4: =MARS!L28 -> 0
A5: =$A$4+5 -> 2018-05-06 | B5: =ECHEANCIER!C4 -> Prel | C5: =ECHEANCIER!D4 -> C MUTUEL | D5: =ECHEANCIER!E4 -> DEP DIV | E5: =IF($A5<=TODAY(),ECHEANCIER!$F4,0) -> -3.96 | F5: =SUM(F4)+(E5) -> 8253.31 | H5: =IF($D5="RETRAITE",($E5),0) -> 0 | I5: =IF($D5="rec div",($E5),0) -> 0 | K5: =IF($D5="dep div",($E5),0) -> -3.96 | L5: =IF($D5="divers",($E5),0) -> 0
A6: =$A$4+9 -> 2018-05-10 | B6: =ECHEANCIER!C5 -> Vir recu | C6: =ECHEANCIER!D5 -> CRAM | D6: =ECHEANCIER!E5 -> RETRAITE | E6: =IF($A6<=TODAY(),ECHEANCIER!$F5,0) -> 677.63 | F6: =SUM(F5+E6) -> 8930.94 | H6: =IF($D6="RETRAITE",($E6),0) -> 677.63 | I6: =IF($D6="rec div",($E6),0) -> 0 | K6: =IF($D6="dep div",($E6),0) -> 0 | L6: =IF($D6="divers",($E6),0) -> 0
A7: =$A$4+9 -> 2018-05-10 | B7: =ECHEANCIER!C6 -> Vir recu | C7: =ECHEANCIER!D6 -> M.S.A | D7: =ECHEANCIER!E6 -> RETRAITE | E7: =IF($A7<=TODAY(),ECHEANCIER!$F6,0) -> 107.69 | F7: =SUM(F6+E7) -> 9038.63 | H7: 107.69 | I7: 0 | K7: =IF($D7="dep div",($E7),0) -> 0 | L7: 0
A8: =$A$4+27 -> 2018-05-28 | B8: =ECHEANCIER!C7 -> Vir recu | C8: =ECHEANCIER!D7 -> TG NANTES | D8: =ECHEANCIER!E7 -> RETRAITE | E8: =IF($A8<=TODAY(),ECHEANCIER!$F7,0) -> 1188.05 | F8: 10226.68 | H8: 1188.05 | I8: 0 | K8: 0 | L8: 0
A9: =$A$4+29 -> 2018-05-30 | B9: =ECHEANCIER!C8 -> Prel | C9: =ECHEANCIER!D8 -> URSSAF | D9: =ECHEANCIER!E8 -> DEP DIV | E9: =IF($A9<=TODAY(),ECHEANCIER!$F8,0) -> 0 | F9: 10226.68 | I9: 0 | K9: 0 | L9: 0
F10: 10226.68 | I10: 0 | K10: 0 | L10: 0
F11: 10226.68 | I11: 0 | K11: 0 | L11: 0
F12: 10226.68 | I12: 0 | K12: 0 | L12: 0
F13: 10226.68 | I13: 0 | K13: 0 | L13: 0
F14: 10226.68 | I14: 0 | K14: 0 | L14: 0
F15: 10226.68 | I15: 0 | K15: 0 | L15: 0
F16: 10226.68 | I16: 0 | K16: 0 | L16: 0
F17: 10226.68 | I17: 0 | K17: 0 | L17: 0
F18: 10226.68 | I18: 0 | K18: 0 | L18: =IF($D18="divers",($E18),0) -> 0
F19: 10226.68 | I19: 0 | K19: 0 | L19: 0
F20: 10226.68 | I20: 0 | K20: 0 | L20: 0
F21: 10226.68 | I21: 0 | K21: 0 | L21: 0
F22: 10226.68 | I22: 0 | K22: 0 | L22: 0
F23: 10226.68 | I23: 0 | K23: 0 | L23: 0
F24: 10226.68 | I24: 0 | K24: 0 | L24: 0
F25: 10226.68 | I25: 0 | K25: 0 | L25: 0
F26: 10226.68 | I26: 0 | K26: 0 | L26: 0
A27: TOTAL MOIS | E27: =SUM(E5:E26) -> 1969.41 | H27: =SUM(H5:H26) -> 1973.37 | I27: 0 | K27: -3.96 | L27: 0
A28: TOTAL | F28: =F26 -> 10226.68 | H28: =(H27+H4) -> 7893.48 | K28: =(K27+K4) -> -15.84 | L28: 0
C30: CONTROLE | F30: =(F28) -> 10226.68

Sheet JUIN
A1: =MID(CELL("filename",A1),FIND("]",CELL("filename",A1))+1,32) -> JUIN
A2: JOURS | B2: MODE | C2: TIERS | D2: CATEGORIE | E2: CREDIT MUTUEL | G2: P | H2: RECETTES | K2: DEPENSES | L2: DIVERS
B3: PAIEMENT | E3: DEB./CRED. | F3: SOLDE | H3: RETRAITE | I3: DIVERSES | J3: C. PORT | K3: DIVERSES
A4: 2018-06-01 | B4: REPORT | F4: =MAI!F28 -> 10226.68 | H4: =MAI!H28 -> 7893.48 | I4: =MAI!I28 -> 0 | J4: =MAI!J28 -> 0 | K4: =MAI!K28 -> -15.84 | L4: =MAI!L28 -> 0
A5: =$A$4+5 -> 2018-06-06 | B5: =ECHEANCIER!C4 -> Prel | C5: =ECHEANCIER!D4 -> C MUTUEL | D5: =ECHEANCIER!E4 -> DEP DIV | E5: =IF($A5<=TODAY(),ECHEANCIER!$F4,0) -> -3.96 | F5: =SUM(F4)+(E5) -> 10222.72 | H5: =IF($D5="RETRAITE",($E5),0) -> 0 | I5: =IF($D5="rec div",($E5),0) -> 0 | K5: =IF($D5="dep div",($E5),0) -> -3.96 | L5: =IF($D5="divers",($E5),0) -> 0
A6: =$A$4+9 -> 2018-06-10 | B6: =ECHEANCIER!C5 -> Vir recu | C6: =ECHEANCIER!D5 -> CRAM | D6: =ECHEANCIER!E5 -> RETRAITE | E6: =IF($A6<=TODAY(),ECHEANCIER!$F5,0) -> 677.63 | F6: =SUM(F5+E6) -> 10900.35 | H6: =IF($D6="RETRAITE",($E6),0) -> 677.63 | I6: =IF($D6="rec div",($E6),0) -> 0 | K6: =IF($D6="dep div",($E6),0) -> 0 | L6: =IF($D6="divers",($E6),0) -> 0
A7: =$A$4+9 -> 2018-06-10 | B7: =ECHEANCIER!C6 -> Vir recu | C7: =ECHEANCIER!D6 -> M.S.A | D7: =ECHEANCIER!E6 -> RETRAITE | E7: =IF($A7<=TODAY(),ECHEANCIER!$F6,0) -> 107.69 | F7: =SUM(F6+E7) -> 11008.04 | H7: 107.69 | I7: 0 | K7: =IF($D7="dep div",($E7),0) -> 0 | L7: 0
A8: =$A$4+27 -> 2018-06-28 | B8: =ECHEANCIER!C7 -> Vir recu | C8: =ECHEANCIER!D7 -> TG NANTES | D8: =ECHEANCIER!E7 -> RETRAITE | E8: =IF($A8<=TODAY(),ECHEANCIER!$F7,0) -> 1188.05 | F8: 12196.09 | H8: 1188.05 | I8: 0 | K8: 0 | L8: 0
A9: =$A$4+29 -> 2018-06-30 | B9: =ECHEANCIER!C8 -> Prel | C9: =ECHEANCIER!D8 -> URSSAF | D9: =ECHEANCIER!E8 -> DEP DIV | E9: =IF($A9<=TODAY(),ECHEANCIER!$F8,0) -> 0 | F9: 12196.09 | I9: 0 | K9: 0 | L9: 0
F10: 12196.09 | I10: 0 | K10: 0 | L10: 0
F11: 12196.09 | I11: 0 | K11: 0 | L11: 0
F12: 12196.09 | I12: 0 | K12: 0 | L12: 0
F13: 12196.09 | I13: 0 | K13: 0 | L13: 0
F14: 12196.09 | I14: 0 | K14: 0 | L14: 0
F15: 12196.09 | I15: 0 | K15: 0 | L15: 0
F16: 12196.09 | I16: 0 | K16: 0 | L16: 0
F17: 12196.09 | I17: 0 | K17: 0 | L17: 0
F18: 12196.09 | I18: 0 | K18: 0 | L18: =IF($D18="divers",($E18),0) -> 0
F19: 12196.09 | I19: 0 | K19: 0 | L19: 0
F20: 12196.09 | I20: 0 | K20: 0 | L20: 0
F21: 12196.09 | I21: 0 | K21: 0 | L21: 0
F22: 12196.09 | I22: 0 | K22: 0 | L22: 0
F23: 12196.09 | I23: 0 | K23: 0 | L23: 0
F24: 12196.09 | I24: 0 | K24: 0 | L24: 0
F25: 12196.09 | I25: 0 | K25: 0 | L25: 0
F26: 12196.09 | I26: 0 | K26: 0 | L26: 0
A27: TOTAL MOIS | E27: =SUM(E5:E26) -> 1969.41 | H27: =SUM(H5:H26) -> 1973.37 | I27: 0 | K27: -3.96 | L27: 0
A28: TOTAL | F28: =F26 -> 12196.09 | H28: =(H27+H4) -> 9866.85 | K28: =(K27+K4) -> -19.8 | L28: 0
C30: CONTROLE | F30: =(F28) -> 12196.09

Sheet JUILLET
A1: =MID(CELL("filename",A1),FIND("]",CELL("filename",A1))+1,32) -> JUILLET
A2: JOURS | B2: MODE | C2: TIERS | D2: CATEGORIE | E2: CREDIT MUTUEL | G2: P | H2: RECETTES | K2: DEPENSES | L2: DIVERS
B3: PAIEMENT | E3: DEB./CRED. | F3: SOLDE | H3: RETRAITE | I3: DIVERSES | J3: C. PORT | K3: DIVERSES
A4: 2018-07-01 | B4: REPORT | F4: =JUIN!F28 -> 12196.09 | H4: =JUIN!H28 -> 9866.85 | I4: =JUIN!I28 -> 0 | J4: =JUIN!J28 -> 0 | K4: =JUIN!K28 -> -19.8 | L4: =JUIN!L28 -> 0
A5: =$A$4+5 -> 2018-07-06 | B5: =ECHEANCIER!C4 -> Prel | C5: =ECHEANCIER!D4 -> C MUTUEL | D5: =ECHEANCIER!E4 -> DEP DIV | E5: =IF($A5<=TODAY(),ECHEANCIER!$F4,0) -> -3.96 | F5: =SUM(F4)+(E5) -> 12192.13 | H5: =IF($D5="RETRAITE",($E5),0) -> 0 | I5: =IF($D5="rec div",($E5),0) -> 0 | K5: =IF($D5="dep div",($E5),0) -> -3.96 | L5: =IF($D5="divers",($E5),0) -> 0
A6: =$A$4+9 -> 2018-07-10 | B6: =ECHEANCIER!C5 -> Vir recu | C6: =ECHEANCIER!D5 -> CRAM | D6: =ECHEANCIER!E5 -> RETRAITE | E6: =IF($A6<=TODAY(),ECHEANCIER!$F5,0) -> 677.63 | F6: =SUM(F5+E6) -> 12869.76 | H6: =IF($D6="RETRAITE",($E6),0) -> 677.63 | I6: =IF($D6="rec div",($E6),0) -> 0 | K6: =IF($D6="dep div",($E6),0) -> 0 | L6: =IF($D6="divers",($E6),0) -> 0
A7: =$A$4+9 -> 2018-07-10 | B7: =ECHEANCIER!C6 -> Vir recu | C7: =ECHEANCIER!D6 -> M.S.A | D7: =ECHEANCIER!E6 -> RETRAITE | E7: =IF($A7<=TODAY(),ECHEANCIER!$F6,0) -> 107.69 | F7: =SUM(F6+E7) -> 12977.45 | H7: 107.69 | I7: 0 | K7: =IF($D7="dep div",($E7),0) -> 0 | L7: 0
A8: =$A$4+27 -> 2018-07-28 | B8: =ECHEANCIER!C7 -> Vir recu | C8: =ECHEANCIER!D7 -> TG NANTES | D8: =ECHEANCIER!E7 -> RETRAITE | E8: =IF($A8<=TODAY(),ECHEANCIER!$F7,0) -> 1188.05 | F8: 14165.5 | H8: 1188.05 | I8: 0 | K8: 0 | L8: 0
A9: =$A$4+29 -> 2018-07-30 | B9: =ECHEANCIER!C8 -> Prel | C9: =ECHEANCIER!D8 -> URSSAF | D9: =ECHEANCIER!E8 -> DEP DIV | E9: =IF($A9<=TODAY(),ECHEANCIER!$F8,0) -> 0 | F9: 14165.5 | I9: 0 | K9: 0 | L9: 0
F10: 14165.5 | I10: 0 | K10: 0 | L10: 0
F11: 14165.5 | I11: 0 | K11: 0 | L11: 0
F12: 14165.5 | I12: 0 | K12: 0 | L12: 0
F13: 14165.5 | I13: 0 | K13: 0 | L13: 0
F14: 14165.5 | I14: 0 | K14: 0 | L14: 0
F15: 14165.5 | I15: 0 | K15: 0 | L15: 0
F16: 14165.5 | I16: 0 | K16: 0 | L16: 0
F17: 14165.5 | I17: 0 | K17: 0 | L17: 0
F18: 14165.5 | I18: 0 | K18: 0 | L18: =IF($D18="divers",($E18),0) -> 0
F19: 14165.5 | I19: 0 | K19: 0 | L19: 0
F20: 14165.5 | I20: 0 | K20: 0 | L20: 0
F21: 14165.5 | I21: 0 | K21: 0 | L21: 0
F22: 14165.5 | I22: 0 | K22: 0 | L22: 0
F23: 14165.5 | I23: 0 | K23: 0 | L23: 0
F24: 14165.5 | I24: 0 | K24: 0 | L24: 0
F25: 14165.5 | I25: 0 | K25: 0 | L25: 0
F26: 14165.5 | I26: 0 | K26: 0 | L26: 0
A27: TOTAL MOIS | E27: =SUM(E5:E26) -> 1969.41 | H27: =SUM(H5:H26) -> 1973.37 | I27: 0 | K27: -3.96 | L27: 0
A28: TOTAL | F28: =F26 -> 14165.5 | H28: =(H27+H4) -> 11840.22 | K28: =(K27+K4) -> -23.76 | L28: 0
C30: CONTROLE | F30: =(F28) -> 14165.5

Sheet AOUT
A1: =MID(CELL("filename",A1),FIND("]",CELL("filename",A1))+1,32) -> AOUT
A2: JOURS | B2: MODE | C2: TIERS | D2: CATEGORIE | E2: CREDIT MUTUEL | G2: P | H2: RECETTES | K2: DEPENSES | L2: DIVERS
B3: PAIEMENT | E3: DEB./CRED. | F3: SOLDE | H3: RETRAITE | I3: DIVERSES | J3: C. PORT | K3: DIVERSES
A4: 2018-08-01 | B4: REPORT | F4: =JUILLET!F28 -> 14165.5 | H4: =JUILLET!H28 -> 11840.22 | I4: =JUILLET!I28 -> 0 | J4: =JUILLET!J28 -> 0 | K4: =JUILLET!K28 -> -23.76 | L4: =JUILLET!L28 -> 0
A5: =$A$4+5 -> 2018-08-06 | B5: =ECHEANCIER!C4 -> Prel | C5: =ECHEANCIER!D4 -> C MUTUEL | D5: =ECHEANCIER!E4 -> DEP DIV | E5: =IF($A5<=TODAY(),ECHEANCIER!$F4,0) -> -3.96 | F5: =SUM(F4)+(E5) -> 14161.54 | H5: =IF($D5="RETRAITE",($E5),0) -> 0 | I5: =IF($D5="rec div",($E5),0) -> 0 | K5: =IF($D5="dep div",($E5),0) -> -3.96 | L5: =IF($D5="divers",($E5),0) -> 0
A6: =$A$4+9 -> 2018-08-10 | B6: =ECHEANCIER!C5 -> Vir recu | C6: =ECHEANCIER!D5 -> CRAM | D6: =ECHEANCIER!E5 -> RETRAITE | E6: =IF($A6<=TODAY(),ECHEANCIER!$F5,0) -> 677.63 | F6: =SUM(F5+E6) -> 14839.17 | H6: =IF($D6="RETRAITE",($E6),0) -> 677.63 | I6: =IF($D6="rec div",($E6),0) -> 0 | K6: =IF($D6="dep div",($E6),0) -> 0 | L6: =IF($D6="divers",($E6),0) -> 0
A7: =$A$4+9 -> 2018-08-10 | B7: =ECHEANCIER!C6 -> Vir recu | C7: =ECHEANCIER!D6 -> M.S.A | D7: =ECHEANCIER!E6 -> RETRAITE | E7: =IF($A7<=TODAY(),ECHEANCIER!$F6,0) -> 107.69 | F7: =SUM(F6+E7) -> 14946.86 | H7: 107.69 | I7: 0 | K7: =IF($D7="dep div",($E7),0) -> 0 | L7: 0
A8: =$A$4+27 -> 2018-08-28 | B8: =ECHEANCIER!C7 -> Vir recu | C8: =ECHEANCIER!D7 -> TG NANTES | D8: =ECHEANCIER!E7 -> RETRAITE | E8: =IF($A8<=TODAY(),ECHEANCIER!$F7,0) -> 1188.05 | F8: 16134.91 | H8: 1188.05 | I8: 0 | K8: 0 | L8: 0
A9: =$A$4+29 -> 2018-08-30 | B9: =ECHEANCIER!C8 -> Prel | C9: =ECHEANCIER!D8 -> URSSAF | D9: =ECHEANCIER!E8 -> DEP DIV | E9: =IF($A9<=TODAY(),ECHEANCIER!$F8,0) -> 0 | F9: 16134.91 | I9: 0 | K9: 0 | L9: 0
F10: 16134.91 | I10: 0 | K10: 0 | L10: 0
F11: 16134.91 | I11: 0 | K11: 0 | L11: 0
F12: 16134.91 | I12: 0 | K12: 0 | L12: 0
F13: 16134.91 | I13: 0 | K13: 0 | L13: 0
F14: 16134.91 | I14: 0 | K14: 0 | L14: 0
F15: 16134.91 | I15: 0 | K15: 0 | L15: 0
F16: 16134.91 | I16: 0 | K16: 0 | L16: 0
F17: 16134.91 | I17: 0 | K17: 0 | L17: 0
F18: 16134.91 | I18: 0 | K18: 0 | L18: =IF($D18="divers",($E18),0) -> 0
F19: 16134.91 | I19: 0 | K19: 0 | L19: 0
F20: 16134.91 | I20: 0 | K20: 0 | L20: 0
F21: 16134.91 | I21: 0 | K21: 0 | L21: 0
F22: 16134.91 | I22: 0 | K22: 0 | L22: 0
F23: 16134.91 | I23: 0 | K23: 0 | L23: 0
F24: 16134.91 | I24: 0 | K24: 0 | L24: 0
F25: 16134.91 | I25: 0 | K25: 0 | L25: 0
F26: 16134.91 | I26: 0 | K26: 0 | L26: 0
A27: TOTAL MOIS | E27: =SUM(E5:E26) -> 1969.41 | H27: =SUM(H5:H26) -> 1973.37 | I27: 0 | K27: -3.96 | L27: 0
A28: TOTAL | F28: =F26 -> 16134.91 | H28: =(H27+H4) -> 13813.59 | K28: =(K27+K4) -> -27.72 | L28: 0
C30: CONTROLE | F30: =(F28) -> 16134.91

Sheet SEPTEMBRE
A1: =MID(CELL("filename",A1),FIND("]",CELL("filename",A1))+1,32) -> SEPTEMBRE
A2: JOURS | B2: MODE | C2: TIERS | D2: CATEGORIE | E2: CREDIT MUTUEL | G2: P | H2: RECETTES | K2: DEPENSES | L2: DIVERS
B3: PAIEMENT | E3: DEB./CRED. | F3: SOLDE | H3: RETRAITE | I3: DIVERSES | J3: C. PORT | K3: DIVERSES
A4: 2018-09-01 | B4: REPORT | F4: =AOUT!F28 -> 16134.91 | H4: =AOUT!H28 -> 13813.59 | I4: =AOUT!I28 -> 0 | J4: =AOUT!J28 -> 0 | K4: =AOUT!K28 -> -27.72 | L4: =AOUT!L28 -> 0
A5: =$A$4+5 -> 2018-09-06 | B5: =ECHEANCIER!C4 -> Prel | C5: =ECHEANCIER!D4 -> C MUTUEL | D5: =ECHEANCIER!E4 -> DEP DIV | E5: =IF($A5<=TODAY(),ECHEANCIER!$F4,0) -> -3.96 | F5: =SUM(F4)+(E5) -> 16130.95 | H5: =IF($D5="RETRAITE",($E5),0) -> 0 | I5: =IF($D5="rec div",($E5),0) -> 0 | K5: =IF($D5="dep div",($E5),0) -> -3.96 | L5: =IF($D5="divers",($E5),0) -> 0
A6: =$A$4+9 -> 2018-09-10 | B6: =ECHEANCIER!C5 -> Vir recu | C6: =ECHEANCIER!D5 -> CRAM | D6: =ECHEANCIER!E5 -> RETRAITE | E6: =IF($A6<=TODAY(),ECHEANCIER!$F5,0) -> 677.63 | F6: =SUM(F5+E6) -> 16808.58 | H6: =IF($D6="RETRAITE",($E6),0) -> 677.63 | I6: =IF($D6="rec div",($E6),0) -> 0 | K6: =IF($D6="dep div",($E6),0) -> 0 | L6: =IF($D6="divers",($E6),0) -> 0
A7: =$A$4+9 -> 2018-09-10 | B7: =ECHEANCIER!C6 -> Vir recu | C7: =ECHEANCIER!D6 -> M.S.A | D7: =ECHEANCIER!E6 -> RETRAITE | E7: =IF($A7<=TODAY(),ECHEANCIER!$F6,0) -> 107.69 | F7: =SUM(F6+E7) -> 16916.27 | H7: 107.69 | I7: 0 | K7: =IF($D7="dep div",($E7),0) -> 0 | L7: 0
A8: =$A$4+27 -> 2018-09-28 | B8: =ECHEANCIER!C7 -> Vir recu | C8: =ECHEANCIER!D7 -> TG NANTES | D8: =ECHEANCIER!E7 -> RETRAITE | E8: =IF($A8<=TODAY(),ECHEANCIER!$F7,0) -> 1188.05 | F8: 18104.32 | H8: 1188.05 | I8: 0 | K8: 0 | L8: 0
A9: =$A$4+29 -> 2018-09-30 | B9: =ECHEANCIER!C8 -> Prel | C9: =ECHEANCIER!D8 -> URSSAF | D9: =ECHEANCIER!E8 -> DEP DIV | E9: =IF($A9<=TODAY(),ECHEANCIER!$F8,0) -> 0 | F9: 18104.32 | I9: 0 | K9: 0 | L9: 0
F10: 18104.32 | I10: 0 | K10: 0 | L10: 0
F11: 18104.32 | I11: 0 | K11: 0 | L11: 0
F12: 18104.32 | I12: 0 | K12: 0 | L12: 0
F13: 18104.32 | I13: 0 | K13: 0 | L13: 0
F14: 18104.32 | I14: 0 | K14: 0 | L14: 0
F15: 18104.32 | I15: 0 | K15: 0 | L15: 0
F16: 18104.32 | I16: 0 | K16: 0 | L16: 0
F17: 18104.32 | I17: 0 | K17: 0 | L17: 0
F18: 18104.32 | I18: 0 | K18: 0 | L18: =IF($D18="divers",($E18),0) -> 0
F19: 18104.32 | I19: 0 | K19: 0 | L19: 0
F20: 18104.32 | I20: 0 | K20: 0 | L20: 0
F21: 18104.32 | I21: 0 | K21: 0 | L21: 0
F22: 18104.32 | I22: 0 | K22: 0 | L22: 0
F23: 18104.32 | I23: 0 | K23: 0 | L23: 0
F24: 18104.32 | I24: 0 | K24: 0 | L24: 0
F25: 18104.32 | I25: 0 | K25: 0 | L25: 0
F26: 18104.32 | I26: 0 | K26: 0 | L26: 0
A27: TOTAL MOIS | E27: =SUM(E5:E26) -> 1969.41 | H27: =SUM(H5:H26) -> 1973.37 | I27: 0 | K27: -3.96 | L27: 0
A28: TOTAL | F28: =F26 -> 18104.32 | H28: =(H27+H4) -> 15786.96 | K28: =(K27+K4) -> -31.68 | L28: 0
C30: CONTROLE | F30: =(F28) -> 18104.32

Sheet OCTOBRE
A1: =MID(CELL("filename",A1),FIND("]",CELL("filename",A1))+1,32) -> OCTOBRE
A2: JOURS | B2: MODE | C2: TIERS | D2: CATEGORIE | E2: CREDIT MUTUEL | G2: P | H2: RECETTES | K2: DEPENSES | L2: DIVERS
B3: PAIEMENT | E3: DEB./CRED. | F3: SOLDE | H3: RETRAITE | I3: DIVERSES | J3: C. PORT | K3: DIVERSES
A4: 2018-10-01 | B4: REPORT | F4: =SEPTEMBRE!F28 -> 18104.32 | H4: =SEPTEMBRE!H28 -> 15786.96 | I4: =SEPTEMBRE!I28 -> 0 | J4: =SEPTEMBRE!J28 -> 0 | K4: =SEPTEMBRE!K28 -> -31.68 | L4: =SEPTEMBRE!L28 -> 0
A5: =$A$4+5 -> 2018-10-06 | B5: =ECHEANCIER!C4 -> Prel | C5: =ECHEANCIER!D4 -> C MUTUEL | D5: =ECHEANCIER!E4 -> DEP DIV | E5: =IF($A5<=TODAY(),ECHEANCIER!$F4,0) -> -3.96 | F5: =SUM(F4)+(E5) -> 18100.36 | H5: =IF($D5="RETRAITE",($E5),0) -> 0 | I5: =IF($D5="rec div",($E5),0) -> 0 | K5: =IF($D5="dep div",($E5),0) -> -3.96 | L5: =IF($D5="divers",($E5),0) -> 0
A6: =$A$4+9 -> 2018-10-10 | B6: =ECHEANCIER!C5 -> Vir recu | C6: =ECHEANCIER!D5 -> CRAM | D6: =ECHEANCIER!E5 -> RETRAITE | E6: =IF($A6<=TODAY(),ECHEANCIER!$F5,0) -> 677.63 | F6: =SUM(F5+E6) -> 18777.99 | H6: =IF($D6="RETRAITE",($E6),0) -> 677.63 | I6: =IF($D6="rec div",($E6),0) -> 0 | K6: =IF($D6="dep div",($E6),0) -> 0 | L6: =IF($D6="divers",($E6),0) -> 0
A7: =$A$4+9 -> 2018-10-10 | B7: =ECHEANCIER!C6 -> Vir recu | C7: =ECHEANCIER!D6 -> M.S.A | D7: =ECHEANCIER!E6 -> RETRAITE | E7: =IF($A7<=TODAY(),ECHEANCIER!$F6,0) -> 107.69 | F7: =SUM(F6+E7) -> 18885.68 | H7: 107.69 | I7: 0 | K7: =IF($D7="dep div",($E7),0) -> 0 | L7: 0
A8: =$A$4+27 -> 2018-10-28 | B8: =ECHEANCIER!C7 -> Vir recu | C8: =ECHEANCIER!D7 -> TG NANTES | D8: =ECHEANCIER!E7 -> RETRAITE | E8: =IF($A8<=TODAY(),ECHEANCIER!$F7,0) -> 1188.05 | F8: 20073.73 | H8: 1188.05 | I8: 0 | K8: 0 | L8: 0
A9: =$A$4+29 -> 2018-10-30 | B9: =ECHEANCIER!C8 -> Prel | C9: =ECHEANCIER!D8 -> URSSAF | D9: =ECHEANCIER!E8 -> DEP DIV | E9: =IF($A9<=TODAY(),ECHEANCIER!$F8,0) -> 0 | F9: 20073.73 | I9: 0 | K9: 0 | L9: 0
F10: 20073.73 | I10: 0 | K10: 0 | L10: 0
F11: 20073.73 | I11: 0 | K11: 0 | L11: 0
F12: 20073.73 | I12: 0 | K12: 0 | L12: 0
F13: 20073.73 | I13: 0 | K13: 0 | L13: 0
F14: 20073.73 | I14: 0 | K14: 0 | L14: 0
F15: 20073.73 | I15: 0 | K15: 0 | L15: 0
F16: 20073.73 | I16: 0 | K16: 0 | L16: 0
F17: 20073.73 | I17: 0 | K17: 0 | L17: 0
F18: 20073.73 | I18: 0 | K18: 0 | L18: =IF($D18="divers",($E18),0) -> 0
F19: 20073.73 | I19: 0 | K19: 0 | L19: 0
F20: 20073.73 | I20: 0 | K20: 0 | L20: 0
F21: 20073.73 | I21: 0 | K21: 0 | L21: 0
F22: 20073.73 | I22: 0 | K22: 0 | L22: 0
F23: 20073.73 | I23: 0 | K23: 0 | L23: 0
F24: 20073.73 | I24: 0 | K24: 0 | L24: 0
F25: 20073.73 | I25: 0 | K25: 0 | L25: 0
F26: 20073.73 | I26: 0 | K26: 0 | L26: 0
A27: TOTAL MOIS | E27: =SUM(E5:E26) -> 1969.41 | H27: =SUM(H5:H26) -> 1973.37 | I27: 0 | K27: -3.96 | L27: 0
A28: TOTAL | F28: =F26 -> 20073.73 | H28: =(H27+H4) -> 17760.33 | K28: =(K27+K4) -> -35.64 | L28: 0
C30: CONTROLE | F30: =(F28) -> 20073.73

Sheet NOVEMBRE
A1: =MID(CELL("filename",A1),FIND("]",CELL("filename",A1))+1,32) -> NOVEMBRE
A2: JOURS | B2: MODE | C2: TIERS | D2: CATEGORIE | E2: CREDIT MUTUEL | G2: P | H2: RECETTES | K2: DEPENSES | L2: DIVERS
B3: PAIEMENT | E3: DEB./CRED. | F3: SOLDE | H3: RETRAITE | I3: DIVERSES | J3: C. PORT | K3: DIVERSES
A4: 2018-11-01 | B4: REPORT | F4: =OCTOBRE!F28 -> 20073.73 | H4: =OCTOBRE!H28 -> 17760.33 | I4: =OCTOBRE!I28 -> 0 | J4: =OCTOBRE!J28 -> 0 | K4: =OCTOBRE!K28 -> -35.64 | L4: =OCTOBRE!L28 -> 0
A5: =$A$4+5 -> 2018-11-06 | B5: =ECHEANCIER!C4 -> Prel | C5: =ECHEANCIER!D4 -> C MUTUEL | D5: =ECHEANCIER!E4 -> DEP DIV | E5: =IF($A5<=TODAY(),ECHEANCIER!$F4,0) -> -3.96 | F5: =SUM(F4)+(E5) -> 20069.77 | H5: =IF($D5="RETRAITE",($E5),0) -> 0 | I5: =IF($D5="rec div",($E5),0) -> 0 | K5: =IF($D5="dep div",($E5),0) -> -3.96 | L5: =IF($D5="divers",($E5),0) -> 0
A6: =$A$4+9 -> 2018-11-10 | B6: =ECHEANCIER!C5 -> Vir recu | C6: =ECHEANCIER!D5 -> CRAM | D6: =ECHEANCIER!E5 -> RETRAITE | E6: =IF($A6<=TODAY(),ECHEANCIER!$F5,0) -> 677.63 | F6: =SUM(F5+E6) -> 20747.4 | H6: =IF($D6="RETRAITE",($E6),0) -> 677.63 | I6: =IF($D6="rec div",($E6),0) -> 0 | K6: =IF($D6="dep div",($E6),0) -> 0 | L6: =IF($D6="divers",($E6),0) -> 0
A7: =$A$4+9 -> 2018-11-10 | B7: =ECHEANCIER!C6 -> Vir recu | C7: =ECHEANCIER!D6 -> M.S.A | D7: =ECHEANCIER!E6 -> RETRAITE | E7: =IF($A7<=TODAY(),ECHEANCIER!$F6,0) -> 107.69 | F7: =SUM(F6+E7) -> 20855.09 | H7: 107.69 | I7: 0 | K7: =IF($D7="dep div",($E7),0) -> 0 | L7: 0
A8: =$A$4+27 -> 2018-11-28 | B8: =ECHEANCIER!C7 -> Vir recu | C8: =ECHEANCIER!D7 -> TG NANTES | D8: =ECHEANCIER!E7 -> RETRAITE | E8: =IF($A8<=TODAY(),ECHEANCIER!$F7,0) -> 1188.05 | F8: 22043.14 | H8: 1188.05 | I8: 0 | K8: 0 | L8: 0
A9: =$A$4+29 -> 2018-11-30 | B9: =ECHEANCIER!C8 -> Prel | C9: =ECHEANCIER!D8 -> URSSAF | D9: =ECHEANCIER!E8 -> DEP DIV | E9: =IF($A9<=TODAY(),ECHEANCIER!$F8,0) -> 0 | F9: 22043.14 | I9: 0 | K9: 0 | L9: 0
F10: 22043.14 | I10: 0 | K10: 0 | L10: 0
F11: 22043.14 | I11: 0 | K11: 0 | L11: 0
F12: 22043.14 | I12: 0 | K12: 0 | L12: 0
F13: 22043.14 | I13: 0 | K13: 0 | L13: 0
F14: 22043.14 | I14: 0 | K14: 0 | L14: 0
F15: 22043.14 | I15: 0 | K15: 0 | L15: 0
F16: 22043.14 | I16: 0 | K16: 0 | L16: 0
F17: 22043.14 | I17: 0 | K17: 0 | L17: 0
F18: 22043.14 | I18: 0 | K18: 0 | L18: =IF($D18="divers",($E18),0) -> 0
F19: 22043.14 | I19: 0 | K19: 0 | L19: 0
F20: 22043.14 | I20: 0 | K20: 0 | L20: 0
F21: 22043.14 | I21: 0 | K21: 0 | L21: 0
F22: 22043.14 | I22: 0 | K22: 0 | L22: 0
F23: 22043.14 | I23: 0 | K23: 0 | L23: 0
F24: 22043.14 | I24: 0 | K24: 0 | L24: 0
F25: 22043.14 | I25: 0 | K25: 0 | L25: 0
F26: 22043.14 | I26: 0 | K26: 0 | L26: 0
A27: TOTAL MOIS | E27: =SUM(E5:E26) -> 1969.41 | H27: =SUM(H5:H26) -> 1973.37 | I27: 0 | K27: -3.96 | L27: 0
A28: TOTAL | F28: =F26 -> 22043.14 | H28: =(H27+H4) -> 19733.7 | K28: =(K27+K4) -> -39.6 | L28: 0
C30: CONTROLE | F30: =(F28) -> 22043.14

Sheet DECEMBRE
A1: =MID(CELL("filename",A1),FIND("]",CELL("filename",A1))+1,32) -> DECEMBRE
A2: JOURS | B2: MODE | C2: TIERS | D2: CATEGORIE | E2: CREDIT MUTUEL | G2: P | H2: RECETTES | K2: DEPENSES | L2: DIVERS
B3: PAIEMENT | E3: DEB./CRED. | F3: SOLDE | H3: RETRAITE | I3: DIVERSES | J3: C. PORT | K3: DIVERSES
A4: 2018-12-01 | B4: REPORT | F4: =NOVEMBRE!F28 -> 22043.14 | H4: =NOVEMBRE!H28 -> 19733.7 | I4: =NOVEMBRE!I28 -> 0 | J4: =NOVEMBRE!J28 -> 0 | K4: =NOVEMBRE!K28 -> -39.6 | L4: =NOVEMBRE!L28 -> 0
A5: =$A$4+5 -> 2018-12-06 | B5: =ECHEANCIER!C4 -> Prel | C5: =ECHEANCIER!D4 -> C MUTUEL | D5: =ECHEANCIER!E4 -> DEP DIV | E5: =IF($A5<=TODAY(),ECHEANCIER!$F4,0) -> -3.96 | F5: =SUM(F4)+(E5) -> 22039.18 | H5: =IF($D5="RETRAITE",($E5),0) -> 0 | I5: =IF($D5="rec div",($E5),0) -> 0 | K5: =IF($D5="dep div",($E5),0) -> -3.96 | L5: =IF($D5="divers",($E5),0) -> 0
A6: =$A$4+9 -> 2018-12-10 | B6: =ECHEANCIER!C5 -> Vir recu | C6: =ECHEANCIER!D5 -> CRAM | D6: =ECHEANCIER!E5 -> RETRAITE | E6: =IF($A6<=TODAY(),ECHEANCIER!$F5,0) -> 677.63 | F6: =SUM(F5+E6) -> 22716.81 | H6: =IF($D6="RETRAITE",($E6),0) -> 677.63 | I6: =IF($D6="rec div",($E6),0) -> 0 | K6: =IF($D6="dep div",($E6),0) -> 0 | L6: =IF($D6="divers",($E6),0) -> 0
A7: =$A$4+9 -> 2018-12-10 | B7: =ECHEANCIER!C6 -> Vir recu | C7: =ECHEANCIER!D6 -> M.S.A | D7: =ECHEANCIER!E6 -> RETRAITE | E7: =IF($A7<=TODAY(),ECHEANCIER!$F6,0) -> 107.69 | F7: =SUM(F6+E7) -> 22824.5 | H7: 107.69 | I7: 0 | K7: =IF($D7="dep div",($E7),0) -> 0 | L7: 0
A8: =$A$4+27 -> 2018-12-28 | B8: =ECHEANCIER!C7 -> Vir recu | C8: =ECHEANCIER!D7 -> TG NANTES | D8: =ECHEANCIER!E7 -> RETRAITE | E8: =IF($A8<=TODAY(),ECHEANCIER!$F7,0) -> 1188.05 | F8: 24012.55 | H8: 1188.05 | I8: 0 | K8: 0 | L8: 0
A9: =$A$4+29 -> 2018-12-30 | B9: =ECHEANCIER!C8 -> Prel | C9: =ECHEANCIER!D8 -> URSSAF | D9: =ECHEANCIER!E8 -> DEP DIV | E9: =IF($A9<=TODAY(),ECHEANCIER!$F8,0) -> 0 | F9: 24012.55 | I9: 0 | K9: 0 | L9: 0
F10: 24012.55 | I10: 0 | K10: 0 | L10: 0
F11: 24012.55 | I11: 0 | K11: 0 | L11: 0
F12: 24012.55 | I12: 0 | K12: 0 | L12: 0
F13: 24012.55 | I13: 0 | K13: 0 | L13: 0
F14: 24012.55 | I14: 0 | K14: 0 | L14: 0
F15: 24012.55 | I15: 0 | K15: 0 | L15: 0
F16: 24012.55 | I16: 0 | K16: 0 | L16: 0
F17: 24012.55 | I17: 0 | K17: 0 | L17: 0
F18: 24012.55 | I18: 0 | K18: 0 | L18: =IF($D18="divers",($E18),0) -> 0
F19: 24012.55 | I19: 0 | K19: 0 | L19: 0
F20: 24012.55 | I20: 0 | K20: 0 | L20: 0
F21: 24012.55 | I21: 0 | K21: 0 | L21: 0
F22: 24012.55 | I22: 0 | K22: 0 | L22: 0
F23: 24012.55 | I23: 0 | K23: 0 | L23: 0
F24: 24012.55 | I24: 0 | K24: 0 | L24: 0
F25: 24012.55 | I25: 0 | K25: 0 | L25: 0
F26: 24012.55 | I26: 0 | K26: 0 | L26: 0
A27: TOTAL MOIS | E27: =SUM(E5:E26) -> 1969.41 | H27: =SUM(H5:H26) -> 1973.37 | I27: 0 | K27: -3.96 | L27: 0
A28: TOTAL | F28: =F26 -> 24012.55 | H28: =(H27+H4) -> 21707.07 | K28: =(K27+K4) -> -43.56 | L28: 0
C30: CONTROLE | F30: =(F28) -> 24012.55
